[Event "Almaty Open 2019"]
[Site "Almaty"]
[Date "2019.10.11"]
[Round "6.5"]
[White "Kostenko, Petr"]
[Black "Smirnov, Pavel"]
[Result "1/2-1/2"]
[ECO "B40"]
[WhiteElo "2462"]
[BlackElo "2556"]
[Annotator "RC"]
[PlyCount "41"]
[EventDate "2019.10.07"]
[EventType "swiss"]
[EventCountry "KAZ"]
[SourceTitle "playchess.com"]
[Source "ChessBase"]
[SourceQuality "1"]
[TimeControl "5400+30"]

1. e4 {[%emt 0:12:44]} c5 {[%emt 0:00:00]} 2. Nf3 {[%emt 0:00:06]} e6 {[%emt 0:00:00]} 3. c4 {[%emt 0:00:24]} Nc6 {[%emt 0:00:00]} 4. Be2 {[%emt 0:00:05]} Nf6 {[%emt 0:03:56]} 5. Nc3 {[%emt 0:00:20]} d5 {[%emt 0:00:08]} 6. exd5 {[%emt 0:00:12]} exd5 {[%emt 0:00:02]} 7. d4 {[%emt 0:00:05]} Be7 {[%emt 0:00:06]} 8. Be3 {[%emt 0:04:06]} cxd4 {[%emt 0:24:25]} 9. Nxd4 {[%emt 0:00:08]} O-O {[%emt 0:00:06]} 10. Nxc6 {[%emt 0:01:47]} bxc6 {[%emt 0:00:04]} 11. cxd5 {[%emt 0:00:41]} Nxd5 {[%emt 0:00:06]} 12. Nxd5 {[%emt 0:00:06]} cxd5 {[%emt 0:00:58]} 13. O-O {[%emt 0:00:08]} Bf6 {[%emt 0:00:48]} 14. Bf3 {[%emt 0:02:25]} Be6 {[%emt 0:15:28]} 15. Bd4 {[%emt 0:00:10]} Rb8 {[%emt 0:00:57]} 16. b3 {[%emt 0:00:58]} Bxd4 {[%emt 0:05:45]} 17. Qxd4 {[%emt 0:00:06]} Qa5 {[%emt 0:00:05]} 18. Rfd1 {[%emt 0:00:16]} Rfd8 {[%emt 0:08:30]} 19. Rd2 {[%emt 0:03:40]} Rb4 {[%emt 0:02:11]} 20. Qb2 {[%emt 0:00:06]} d4 {[%emt 0:02:24]} 21. Be4 {[%emt 0:01:44]} 1/2-1/2

[Event "Almaty Open 2019"]
[Site "Almaty"]
[Date "2019.10.11"]
[Round "6.7"]
[White "Isanzhulov, Arystan"]
[Black "Urazayev, Arystanbek"]
[Result "1/2-1/2"]
[ECO "A45"]
[WhiteElo "2305"]
[BlackElo "2420"]
[Annotator "ChessBase"]
[PlyCount "82"]
[EventDate "2019.10.07"]
[EventType "swiss"]
[EventCountry "KAZ"]
[SourceTitle "playchess.com"]
[Source "ChessBase"]
[SourceQuality "1"]
[TimeControl "5400+30"]

1. d4 {[%emt 0:01:46]} Nf6 {[%emt 0:01:41]} 2. Bg5 {[%emt 0:00:05]} e6 {[%emt 0:04:07]} 3. Nd2 {[%emt 0:03:35]} d5 {[%emt 0:00:27]} 4. e3 {[%emt 0:02:00]} Be7 {[%emt 0:01:16]} 5. Ngf3 {[%emt 0:02:23]} h6 {[%emt 0:01:15]} 6. Bh4 {[%emt 0:01:05]} O-O {[%emt 0:00:08]} 7. Be2 {[%emt 0:07:24]} c5 {[%emt 0:04:10]} 8. dxc5 {[%emt 0:03:05]} Bxc5 {[%emt 0:01:40]} 9. O-O {[%emt 0:00:17]} Nc6 {[%emt 0:01:44]} 10. c4 {[%emt 0:01:28]} Be7 {[%emt 0:03:08]} 11. cxd5 {[%emt 0:11:06]} Nxd5 {[%emt 0:01:24]} 12. Bg3 {[%emt 0:02:27]} Bd6 {[%emt 0:16:18]} 13. Nc4 {[%emt 0:15:36]} Bxg3 {[%emt 0:00:14]} 14. hxg3 {[%emt 0:00:03]} Qe7 {[%emt 0:10:31]} 15. Nd4 {[%emt 0:17:01]} Bd7 {[%emt 0:04:59]} 16. Bf3 {[%emt 0:00:25]} Rfd8 {[%emt 0:05:36]} 17. Bxd5 {[%emt 0:11:55]} exd5 {[%emt 0:00:17]} 18. Nd2 {[%emt 0:08:03]} Nxd4 {[%emt 0:01:43]} 19. exd4 {[%emt 0:00:01]} Qb4 {[%emt 0:04:42]} 20. Nb3 {[%emt 0:03:20]} b6 {[%emt 0:02:12]} 21. Re1 {[%emt 0:01:53]} Rac8 {[%emt 0:01:52]} 22. Re3 {[%emt 0:01:01]} Bf5 {[%emt 0:02:56]} 23. Qe1 {[%emt 0:02:16]} Qa4 {[%emt 0:03:33]} 24. Rc3 {[%emt 0:01:20]} Re8 {[%emt 0:04:40]} 25. Qd2 {[%emt 0:00:45]} Qa6 {[%emt 0:02:05]} 26. Nc1 {[%emt 0:01:11]} Rxc3 {[%emt 0:02:16]} 27. bxc3 {[%emt 0:00:39]} Qc4 {[%emt 0:05:57]} 28. a4 {[%emt 0:00:26]} a5 {[%emt 0:01:46]} 29. f3 {[%emt 0:00:28]} f6 {[%emt 0:03:25]} 30. Kf2 {[%emt 0:00:31]} Bc8 {[%emt 0:01:11]} 31. Qd3 {[%emt 0:00:13]} Ba6 {[%emt 0:02:15]} 32. Qxc4 {[%emt 0:00:04]} Bxc4 {[%emt 0:00:04]} 33. Rb1 {[%emt 0:00:13]} Re6 {[%emt 0:00:40]} 34. Rb2 {[%emt 0:01:10]} Kf7 {[%emt 0:00:53]} 35. Ne2 {[%emt 0:01:23]} Ke8 {[%emt 0:01:38]} 36. Nf4 {[%emt 0:00:22]} Rc6 {[%emt 0:00:42]} 37. g4 {[%emt 0:00:36]} Kd7 {[%emt 0:01:32]} 38. g3 {[%emt 0:00:14]} Kc7 {[%emt 0:01:50]} 39. Ng2 {[%emt 0:00:24]} Kd6 {[%emt 0:01:27]} 40. Ne3 {[%emt 0:00:25]} Bd3 {[%emt 0:00:16]} 41. Ke1 {[%emt 0:00:42]} g6 {[%emt 0:00:57]} 1/2-1/2

[Event "Almaty Open 2019"]
[Site "Almaty"]
[Date "2019.10.11"]
[Round "6.8"]
[White "Rakhimzhan, Alen"]
[Black "Moisseyenko, Ilya"]
[Result "1/2-1/2"]
[ECO "D10"]
[WhiteElo "2303"]
[BlackElo "2264"]
[Annotator "NA RC"]
[PlyCount "79"]
[EventDate "2019.10.07"]
[EventType "swiss"]
[EventCountry "KAZ"]
[SourceTitle "playchess.com"]
[Source "ChessBase"]
[SourceQuality "1"]
[TimeControl "5400+30"]

1. d4 {[%emt 0:19:55]} d5 {[%emt 0:00:00]} 2. c4 {[%emt 0:00:35]} c6 {[%emt 0:00:00]} 3. cxd5 {[%emt 0:00:15]} cxd5 {[%emt 0:00:00]} 4. Bf4 {[%emt 0:00:12]} Nf6 {[%emt 0:00:00]} 5. Nc3 {[%emt 0:00:10]} Nc6 {[%emt 0:00:04]} 6. e3 {[%emt 0:00:10]} a6 {[%emt 0:00:05]} 7. Bd3 {[%emt 0:00:10]} Bg4 {[%emt 0:00:11]} 8. Nge2 {[%emt 0:00:45]} e6 {[%emt 0:07:14]} 9. h3 {[%emt 0:00:14]} Bh5 {[%emt 0:00:05] D10: Slav Defence: 3 cxd5 (without early Nf3) and 3 Nc3} 10. O-O {[%emt 0:00:32]} Bd6 {[%emt 0:00:12]} (10... Be7 11. Rc1 O-O 12. a3 Bg6 13. Bxg6 hxg6 14. Na4 Nd7 15. b4 Rc8 16. Qb3 b6 17. Qd3 {½-½ (56) Gorodetzky,D (2461)-Postny,E (2601) Riga 2019}) 11. Bxd6 {[%emt 0:02:18]} Qxd6 {[%emt 0:00:03]} 12. Rc1 {[%emt 0:00:31]} O-O {[%emt 0:02:45]} 13. Qd2 {[%emt 0:00:47]} Bxe2 {[%emt 0:04:10]} 14. Qxe2 {[%emt 0:03:48]} b5 {[%emt 0:01:59]} 15. a4 {[%emt 0:02:38]} bxa4 $146 {[%emt 0:02:04]} ({Predecessor:} 15... b4 16. Nb1 a5 17. Nd2 e5 18. Bb5 {1-0 (55) Faizulaev,A (2322)-Sattarov,B (2271) Tashkent 2014}) 16. Nxa4 {[%emt 0:00:44]} Nb4 {[%emt 0:00:14]} 17. Bb1 {[%emt 0:01:55]} g6 {[%emt 0:10:57]} 18. Rc3 {[%emt 0:01:27]} Rfb8 {[%emt 0:01:38]} 19. Qf3 {[%emt 0:04:32]} Kg7 {[%emt 0:01:11]} 20. Rfc1 {[%emt 0:01:15]} Ra7 {[%emt 0:01:59]} 21. Nc5 {[%emt 0:04:00]} a5 {[%emt 0:01:26]} 22. Qe2 $11 {[%emt 0:03:59]} Nd7 {[%emt 0:07:40]} 23. Qd2 {[%emt 0:07:15]} Nb6 {[%emt 0:04:50]} 24. b3 {[%emt 0:01:23]} Nd7 {[%emt 0:07:06]} 25. Na4 {[%emt 0:14:44]} Nf6 {[%emt 0:03:59]} 26. Nc5 {[%emt 0:01:38]} h5 {[%emt 0:01:52]} 27. Bd3 {[%emt 0:00:30]} Qb6 {[%emt 0:10:44]} 28. Ra1 {[%emt 0:02:51]} Rc7 {[%emt 0:03:12]} 29. Rac1 {[%emt 0:04:15]} Ra7 {[%emt 0:03:24]} 30. Ra1 {[%emt 0:01:27]} Rc7 {[%emt 0:00:08]} 31. Na4 {[%emt 0:01:35]} Rxc3 {[%emt 0:01:59]} 32. Qxc3 {[%emt 0:00:07]} Qb7 {[%emt 0:00:54]} 33. Nc5 {[%emt 0:00:23]} Qb6 {[%emt 0:00:01]} 34. Be2 {[%emt 0:02:10]} Rc8 {[%emt 0:02:21]} 35. Qd2 {[%emt 0:01:31]} Rc7 {[%emt 0:01:52]} 36. Rc1 {[%emt 0:02:05]} Rc6 {[%emt 0:00:11]} 37. f3 {[%emt 0:01:15]} Qb8 {[%emt 0:01:06]} 38. Rc3 {[%emt 0:03:53]} Kg8 {[%emt 0:01:31]} 39. Bf1 {[%emt 0:01:06]} Rc7 {[%emt 0:01:36]} 40. Kf2 {[%emt 0:04:22]} 1/2-1/2

[Event "Almaty Open 2019"]
[Site "Almaty"]
[Date "2019.10.11"]
[Round "6.9"]
[White "Zhukenov, Aituar"]
[Black "Serikbay, Chingiz"]
[Result "0-1"]
[ECO "B35"]
[WhiteElo "2196"]
[BlackElo "2298"]
[Annotator "ChessBase"]
[PlyCount "112"]
[EventDate "2019.10.07"]
[EventType "swiss"]
[EventCountry "KAZ"]
[SourceTitle "playchess.com"]
[Source "ChessBase"]
[SourceQuality "1"]
[TimeControl "5400+30"]

1. e4 {[%emt 0:00:00]} c5 {[%emt 0:03:50]} 2. Nf3 {[%emt 0:00:00]} g6 {[%emt 0:00:08]} 3. d4 {[%emt 0:00:45]} Bg7 {[%emt 0:00:06]} 4. Nc3 {[%emt 0:03:47]} cxd4 {[%emt 0:00:07]} 5. Nxd4 {[%emt 0:00:06]} Nc6 {[%emt 0:00:02]} 6. Be3 {[%emt 0:00:25]} Nf6 {[%emt 0:00:06]} 7. Bc4 {[%emt 0:02:24]} O-O {[%emt 0:00:06]} 8. Bb3 {[%emt 0:00:29]} d6 {[%emt 0:00:04]} 9. f3 {[%emt 0:00:40]} Nxd4 {[%emt 0:00:06]} 10. Bxd4 {[%emt 0:00:05]} Be6 {[%emt 0:00:11]} 11. Qd2 {[%emt 0:01:07]} Qa5 {[%emt 0:00:08]} 12. O-O-O {[%emt 0:04:04]} Rfc8 {[%emt 0:01:08]} 13. Kb1 {[%emt 0:00:40]} b5 {[%emt 0:01:25]} 14. Rhe1 {[%emt 0:05:29]} Bxb3 {[%emt 0:00:27]} 15. cxb3 {[%emt 0:01:54]} b4 {[%emt 0:00:42]} 16. Nd5 {[%emt 0:01:11]} Nxd5 {[%emt 0:02:18]} 17. Bxg7 {[%emt 0:00:32]} Ne3 {[%emt 0:19:39]} 18. Qxe3 {[%emt 0:17:58]} Kxg7 {[%emt 0:00:02]} 19. Qd4+ {[%emt 0:09:53]} f6 {[%emt 0:03:57]} 20. Rc1 {[%emt 0:02:34]} Rab8 {[%emt 0:12:33]} 21. Rc4 {[%emt 0:04:54]} Rxc4 {[%emt 0:00:08]} 22. Qxc4 {[%emt 0:00:11]} Rb5 {[%emt 0:07:41]} 23. Qe6 {[%emt 0:15:31]} Re5 {[%emt 0:00:48]} 24. Qc8 {[%emt 0:03:53]} Rc5 {[%emt 0:03:54]} 25. Qe6 {[%emt 0:00:53]} Re5 {[%emt 0:07:30]} 26. Qc4 {[%emt 0:02:07]} d5 {[%emt 0:02:22]} 27. Qd3 {[%emt 0:02:23]} dxe4 {[%emt 0:01:01]} 28. Rxe4 {[%emt 0:00:54]} Rxe4 {[%emt 0:00:09]} 29. Qxe4 {[%emt 0:00:06]} Qc5 {[%emt 0:02:35]} 30. Qe1 {[%emt 0:02:40]} e5 {[%emt 0:00:16]} 31. Qd1 {[%emt 0:03:08]} f5 {[%emt 0:15:48]} 32. Qd7+ {[%emt 0:02:38]} Kf6 {[%emt 0:00:06]} 33. Qd8+ {[%emt 0:00:25]} Qe7 {[%emt 0:00:01]} 34. Qh8+ {[%emt 0:03:04]} Kg5 {[%emt 0:00:12]} 35. Qb8 {[%emt 0:01:39]} Kh6 {[%emt 0:02:16]} 36. a3 {[%emt 0:04:52]} bxa3 {[%emt 0:02:27]} 37. Ka2 {[%emt 0:01:19]} axb2 {[%emt 0:00:07]} 38. Kxb2 {[%emt 0:00:03]} e4 {[%emt 0:03:50]} 39. fxe4 {[%emt 0:00:16]} fxe4 {[%emt 0:01:28]} 40. Qf4+ {[%emt 0:00:08]} g5 {[%emt 0:00:10]} 41. Qe3 {[%emt 0:00:17]} Qe5+ {[%emt 0:03:28]} 42. Kc2 {[%emt 0:00:11]} a5 {[%emt 0:01:17]} 43. g3 {[%emt 0:03:36]} Kg6 {[%emt 0:00:52]} 44. h3 {[%emt 0:01:27]} Qe6 {[%emt 0:01:08]} 45. Kd2 {[%emt 0:00:25]} Qxh3 {[%emt 0:02:19]} 46. Qxe4+ {[%emt 0:00:07]} Qf5 {[%emt 0:00:03]} 47. Qe8+ {[%emt 0:00:29]} Kh6 {[%emt 0:00:47]} 48. Qe3 {[%emt 0:01:08]} Qd5+ {[%emt 0:00:44]} 49. Ke2 {[%emt 0:00:15]} Qg2+ {[%emt 0:01:25]} 50. Kd3 {[%emt 0:00:53]} Kh5 {[%emt 0:00:21]} 51. Qe8+ {[%emt 0:00:28]} Kg4 {[%emt 0:00:01]} 52. Qd7+ {[%emt 0:00:09]} Kxg3 {[%emt 0:00:37]} 53. Qxh7 {[%emt 0:00:05]} Qd5+ {[%emt 0:00:28]} 54. Kc3 {[%emt 0:01:15]} g4 {[%emt 0:00:01]} 55. Qe7 {[%emt 0:00:35]} Kf2 {[%emt 0:00:54]} 56. Kb2 {[%emt 0:00:39]} Qd2+ {[%emt 0:00:22]} 0-1

[Event "Almaty Open 2019"]
[Site "Almaty"]
[Date "2019.10.11"]
[Round "6.10"]
[White "Sisabayev, Kuanysh"]
[Black "Kenzhalin, Nursultan"]
[Result "1/2-1/2"]
[ECO "B00"]
[WhiteElo "2289"]
[BlackElo "2185"]
[Annotator "ChessBase"]
[PlyCount "140"]
[EventDate "2019.10.07"]
[EventType "swiss"]
[EventCountry "KAZ"]
[SourceTitle "playchess.com"]
[Source "ChessBase"]
[SourceQuality "1"]
[TimeControl "5400+30"]

1. e4 {[%emt 0:00:00]} d6 {[%emt 0:00:00]} 2. d4 {[%emt 0:00:30]} Nf6 {[%emt 0:00:30]} 3. f3 {[%emt 0:02:48]} g6 {[%emt 0:00:10]} 4. Be3 {[%emt 0:00:07]} Bg7 {[%emt 0:00:04]} 5. Qd2 {[%emt 0:00:10]} c6 {[%emt 0:01:36]} 6. c4 {[%emt 0:00:16]} Nbd7 {[%emt 0:01:44]} 7. Nc3 {[%emt 0:00:10]} e5 {[%emt 0:03:22]} 8. O-O-O {[%emt 0:00:08]} Qc7 {[%emt 0:01:11]} 9. Bh6 {[%emt 0:02:52]} Bf8 {[%emt 0:04:13]} 10. Nge2 {[%emt 0:02:14]} b6 {[%emt 0:03:32]} 11. Kb1 {[%emt 0:03:54]} Bb7 {[%emt 0:02:15]} 12. d5 {[%emt 0:02:13]} c5 {[%emt 0:02:43]} 13. Nb5 {[%emt 0:01:14]} Qb8 {[%emt 0:00:01]} 14. g4 {[%emt 0:01:13]} a6 {[%emt 0:02:51]} 15. Nbc3 {[%emt 0:00:07]} Qd8 {[%emt 0:02:15]} 16. Ng3 {[%emt 0:00:28]} Bxh6 {[%emt 0:03:14]} 17. Qxh6 {[%emt 0:00:07]} Ng8 {[%emt 0:00:12]} 18. Qe3 {[%emt 0:00:31]} Qh4 {[%emt 0:02:10]} 19. Bd3 {[%emt 0:06:08]} Ne7 {[%emt 0:03:01]} 20. Qe1 {[%emt 0:00:47]} O-O-O {[%emt 0:01:43]} 21. Nf5 {[%emt 0:00:54]} Nxf5 {[%emt 0:00:16]} 22. exf5 {[%emt 0:00:09]} Qxe1 {[%emt 0:04:29]} 23. Rdxe1 {[%emt 0:00:15]} Kc7 {[%emt 0:00:52]} 24. h4 {[%emt 0:02:32]} Nf6 {[%emt 0:06:24]} 25. Ne2 {[%emt 0:04:46]} b5 {[%emt 0:03:50]} 26. b3 {[%emt 0:00:06]} bxc4 {[%emt 0:00:06]} 27. bxc4 {[%emt 0:00:07]} Bc8 {[%emt 0:00:37]} 28. g5 {[%emt 0:06:13]} Nh5 {[%emt 0:00:44]} 29. f6 {[%emt 0:00:08]} Bf5 {[%emt 0:05:03]} 30. Kc2 {[%emt 0:03:25]} Rb8 {[%emt 0:01:52]} 31. Rb1 {[%emt 0:00:03]} Rxb1 {[%emt 0:06:09]} 32. Rxb1 {[%emt 0:00:10]} Bd7 {[%emt 0:01:06]} 33. Kd2 {[%emt 0:01:21]} Rb8 {[%emt 0:01:06]} 34. Rxb8 {[%emt 0:03:31]} Kxb8 {[%emt 0:00:01]} 35. Ke3 {[%emt 0:00:35]} Kc7 {[%emt 0:00:05]} 36. f4 {[%emt 0:01:42]} Nxf4 {[%emt 0:00:59]} 37. Nxf4 {[%emt 0:00:08]} exf4+ {[%emt 0:00:06]} 38. Kxf4 {[%emt 0:00:06]} Be8 {[%emt 0:00:07]} 39. h5 {[%emt 0:00:09]} Kd8 {[%emt 0:01:12]} 40. Ke3 {[%emt 0:03:35]} Bd7 {[%emt 0:03:13]} 41. hxg6 {[%emt 0:01:03]} hxg6 {[%emt 0:01:22]} 42. Bc2 {[%emt 0:00:33]} Be8 {[%emt 0:00:04]} 43. Kd2 {[%emt 0:00:15]} Bd7 {[%emt 0:00:17]} 44. Kc3 {[%emt 0:00:09]} Be8 {[%emt 0:00:10]} 45. Kb2 {[%emt 0:00:06]} Kc7 {[%emt 0:00:14]} 46. Ka3 {[%emt 0:00:35]} Kb6 {[%emt 0:00:09]} 47. Bd1 {[%emt 0:00:33]} Bd7 {[%emt 0:01:53]} 48. Bc2 {[%emt 0:00:18]} Be8 {[%emt 0:00:05]} 49. Be4 {[%emt 0:00:42]} Kc7 {[%emt 0:00:05]} 50. Kb3 {[%emt 0:00:38]} Kd8 {[%emt 0:00:10]} 51. Kc3 {[%emt 0:00:25]} Kc7 {[%emt 0:00:16]} 52. Bc2 {[%emt 0:00:48]} Kd8 {[%emt 0:00:06]} 53. Kd2 {[%emt 0:00:10]} Kc7 {[%emt 0:00:10]} 54. Ke3 {[%emt 0:00:09]} Kb6 {[%emt 0:00:36]} 55. Kf4 {[%emt 0:00:58]} Kc7 {[%emt 0:01:47]} 56. Bd1 {[%emt 0:02:39]} Kd8 {[%emt 0:01:01]} 57. Bg4 {[%emt 0:01:49]} Bd7 {[%emt 0:00:27]} 58. Bd1 {[%emt 0:01:56]} Be8 {[%emt 0:00:06]} 59. Ke3 {[%emt 0:04:24]} Kc7 {[%emt 0:00:10]} 60. Bc2 {[%emt 0:00:09]} Kd8 {[%emt 0:00:07]} 61. Kd2 {[%emt 0:00:07]} Kc7 {[%emt 0:00:23]} 62. Kc3 {[%emt 0:00:28]} Kd8 {[%emt 0:00:12]} 63. Kb3 {[%emt 0:00:07]} Kc7 {[%emt 0:00:07]} 64. Ka3 {[%emt 0:00:09]} Kd8 {[%emt 0:00:42]} 65. Bd1 {[%emt 0:00:52]} Bd7 {[%emt 0:00:06]} 66. Bf3 {[%emt 0:00:18]} Be8 {[%emt 0:01:00]} 67. Bg4 {[%emt 0:00:30]} Bd7 {[%emt 0:00:17]} 68. Bd1 {[%emt 0:01:14]} Be8 {[%emt 0:00:10]} 69. Bc2 {[%emt 0:00:04]} Kc7 {[%emt 0:00:06]} 70. Kb2 {[%emt 0:00:08]} Kd8 {[%emt 0:00:12]} 1/2-1/2

[Event "Almaty Open 2019"]
[Site "Almaty"]
[Date "2019.10.11"]
[Round "6.11"]
[White "Mezentsev, Ivan"]
[Black "Tologontegin, Semetey"]
[Result "1-0"]
[ECO "A04"]
[WhiteElo "2351"]
[BlackElo "2384"]
[Annotator "ChessBase"]
[PlyCount "125"]
[EventDate "2019.10.07"]
[EventType "swiss"]
[EventCountry "KAZ"]
[SourceTitle "playchess.com"]
[Source "ChessBase"]
[SourceQuality "1"]
[TimeControl "5400+30"]

1. Nf3 {[%emt 0:04:45]} d6 {[%emt 0:03:19]} 2. d4 {[%emt 0:00:57]} Nf6 {[%emt 0:00:21]} 3. c4 {[%emt 0:00:33]} Bf5 {[%emt 0:08:16]} 4. Nc3 {[%emt 0:01:21]} h6 {[%emt 0:03:42]} 5. e3 {[%emt 0:01:50]} Nbd7 {[%emt 0:00:39]} 6. Bd3 {[%emt 0:00:53]} Bxd3 {[%emt 0:00:47]} 7. Qxd3 {[%emt 0:00:08]} e5 {[%emt 0:00:28]} 8. O-O {[%emt 0:01:41]} Be7 {[%emt 0:01:26]} 9. b3 {[%emt 0:10:50]} O-O {[%emt 0:01:45]} 10. Bb2 {[%emt 0:00:27]} Re8 {[%emt 0:05:44]} 11. Rad1 {[%emt 0:04:46]} c6 {[%emt 0:01:44]} 12. Qf5 {[%emt 0:13:14]} g6 {[%emt 0:10:43]} 13. Qc2 {[%emt 0:00:27]} Qc7 {[%emt 0:01:04]} 14. d5 {[%emt 0:02:50]} c5 {[%emt 0:08:15]} 15. e4 {[%emt 0:08:09]} a6 {[%emt 0:00:57]} 16. a4 {[%emt 0:00:57]} Nh5 {[%emt 0:01:46]} 17. Ne1 {[%emt 0:08:40]} Bf8 {[%emt 0:00:25]} 18. g3 {[%emt 0:02:50]} Bg7 {[%emt 0:01:06]} 19. Ng2 {[%emt 0:00:08]} Re7 {[%emt 0:02:29]} 20. Kh1 {[%emt 0:00:35]} Rae8 {[%emt 0:00:51]} 21. Rde1 {[%emt 0:02:00]} Qc8 {[%emt 0:03:30]} 22. Ba3 {[%emt 0:04:54]} Ndf6 {[%emt 0:08:00]} 23. Kg1 {[%emt 0:01:39]} Nd7 {[%emt 0:11:48]} 24. Ne3 {[%emt 0:05:00]} Nhf6 {[%emt 0:01:06]} 25. a5 {[%emt 0:03:11]} h5 {[%emt 0:00:24]} 26. Na4 {[%emt 0:01:22]} Qc7 {[%emt 0:09:26]} 27. b4 {[%emt 0:00:09]} cxb4 {[%emt 0:00:03]} 28. Bxb4 {[%emt 0:00:05]} Rc8 {[%emt 0:00:06]} 29. Qd3 {[%emt 0:01:53]} Ree8 {[%emt 0:01:39]} 30. Rc1 {[%emt 0:01:24]} Bf8 {[%emt 0:00:03]} 31. Rc2 {[%emt 0:01:28]} Rb8 {[%emt 0:02:40]} 32. Kg2 {[%emt 0:01:08]} Red8 {[%emt 0:05:58]} 33. f3 {[%emt 0:01:49]} Ne8 {[%emt 0:01:33]} 34. Qa3 {[%emt 0:06:09]} Nc5 {[%emt 0:00:07]} 35. Nxc5 {[%emt 0:01:10]} dxc5 {[%emt 0:00:05]} 36. Bc3 {[%emt 0:00:02]} Bg7 {[%emt 0:00:31]} 37. Qa1 {[%emt 0:00:30]} Qe7 {[%emt 0:00:08]} 38. d6 {[%emt 0:04:35]} Qxd6 {[%emt 0:02:11]} 39. Nd5 {[%emt 0:00:28]} Nc7 {[%emt 0:00:27]} 40. f4 {[%emt 0:00:16]} Nxd5 {[%emt 0:00:38]} 41. cxd5 {[%emt 0:00:45]} Re8 {[%emt 0:00:54]} 42. Rcf2 {[%emt 0:00:37]} f6 {[%emt 0:01:39]} 43. f5 {[%emt 0:00:34]} g5 {[%emt 0:01:28]} 44. Qd1 {[%emt 0:00:07]} g4 {[%emt 0:00:23]} 45. h3 {[%emt 0:00:05]} gxh3+ {[%emt 0:00:05]} 46. Kxh3 {[%emt 0:00:12]} b5 {[%emt 0:00:01]} 47. axb6 {[%emt 0:00:24]} Rxb6 {[%emt 0:00:03]} 48. Qxh5 {[%emt 0:00:45]} Reb8 {[%emt 0:00:28]} 49. Rf3 {[%emt 0:00:56]} c4 {[%emt 0:00:23]} 50. g4 {[%emt 0:03:13]} Qe7 {[%emt 0:02:37]} 51. Kg3 {[%emt 0:01:17]} Rb1 {[%emt 0:00:05]} 52. g5 {[%emt 0:00:19]} Rxf1 {[%emt 0:00:09]} 53. Rxf1 {[%emt 0:00:03]} Rb3 {[%emt 0:00:18]} 54. Rf3 {[%emt 0:00:10]} fxg5 {[%emt 0:00:17]} 55. Qg6 {[%emt 0:01:07]} Qf6 {[%emt 0:01:48]} 56. Qe8+ {[%emt 0:00:32]} Qf8 {[%emt 0:00:37]} 57. Qe6+ {[%emt 0:00:19]} Qf7 {[%emt 0:00:02]} 58. d6 {[%emt 0:01:14]} Rb6 {[%emt 0:00:58]} 59. Qc8+ {[%emt 0:00:40]} Kh7 {[%emt 0:00:29]} 60. d7 {[%emt 0:00:30]} Qh5 {[%emt 0:00:28]} 61. d8=Q {[%emt 0:00:22]} g4 {[%emt 0:00:32]} 62. Qg8+ {[%emt 0:00:08]} Kh6 {[%emt 0:00:00]} 63. Bd2+ {[%emt 0:00:01]} 1-0